[Event "December 5 Late 2023"]
[Site "https://www.chess.com"]
[Date "2023.12.05"]
[Round "1"]
[White "Deac, Bogdan-Daniel"]
[Black "Mazurkiewicz, Michal"]
[Result "0-1"]
[Board "19"]
[TimeControl "180+1"]
[WhiteFideId "1226380"]
[BlackFideId "1124943"]
[WhiteElo "3004"]
[BlackElo "2488"]
[WhiteTeam "ROU"]
[BlackTeam "POL"]
[WhiteClock "0:00:00"]
[BlackClock "0:00:04"]

1. b3 {[%clk 0:03:00]}  Nf6 {[%clk 0:02:58]} 2. Bb2 {[%clk 0:03:01]}  g6 {[%clk 0:02:59]} 3. Nf3 {[%clk 0:03:01]}  Bg7 {[%clk 0:03:00]} 4. g3 {[%clk 0:03:01]}  O-O {[%clk 0:03:00]} 5. Bg2 {[%clk 0:03:02]}  d6 {[%clk 0:03:01]} 6. d4 {[%clk 0:03:02]}  Nbd7 {[%clk 0:03:00]} 7. O-O {[%clk 0:03:01]}  Re8 {[%clk 0:03:01]} 8. c4 {[%clk 0:02:58]}  c6 {[%clk 0:03:01]} 9. Nc3 {[%clk 0:02:56]}  e5 {[%clk 0:03:01]} 10. e4 {[%clk 0:02:56]}  exd4 {[%clk 0:02:52]} 11. Nxd4 {[%clk 0:02:56]}  Nc5 {[%clk 0:02:52]} 12. Qc2 {[%clk 0:02:57]}  Qb6 {[%clk 0:02:49]} 13. Rad1 {[%clk 0:02:53]}  Bg4 {[%clk 0:02:40]} 14. f3 {[%clk 0:02:27]}  Bd7 {[%clk 0:02:09]} 15. Kh1 {[%clk 0:02:18]}  a5 {[%clk 0:02:04]} 16. Nde2 {[%clk 0:02:01]}  a4 {[%clk 0:01:58]} 17. Nxa4 {[%clk 0:01:53]}  Nxa4 {[%clk 0:01:57]} 18. bxa4 {[%clk 0:01:54]}  Nxe4 {[%clk 0:01:19]} 19. Bd4 {[%clk 0:01:20]}  Bxd4 {[%clk 0:01:09]} 20. Nxd4 {[%clk 0:01:20]}  Nc5 {[%clk 0:00:55]} 21. Nb3 {[%clk 0:01:20]}  Bf5 {[%clk 0:00:50]} 22. Qd2 {[%clk 0:00:55]}  Nxb3 {[%clk 0:00:46]} 23. axb3 {[%clk 0:00:50]}  Qxb3 {[%clk 0:00:46]} 24. Qxd6 {[%clk 0:00:49]}  Qxc4 {[%clk 0:00:46]} 25. Qc7 {[%clk 0:00:48]}  Qb4 {[%clk 0:00:26]} 26. g4 {[%clk 0:00:36]}  Rac8 {[%clk 0:00:22]} 27. Qg3 {[%clk 0:00:28]}  Bc2 {[%clk 0:00:19]} 28. Rc1 {[%clk 0:00:28]}  Bd3 {[%clk 0:00:19]} 29. Rfd1 {[%clk 0:00:28]}  Be2 {[%clk 0:00:19]} 30. Rb1 {[%clk 0:00:22]}  Qxa4 {[%clk 0:00:18]} 31. Rdc1 {[%clk 0:00:22]}  Ba6 {[%clk 0:00:16]} 32. Re1 {[%clk 0:00:19]}  Qd4 {[%clk 0:00:12]} 33. f4 {[%clk 0:00:15]}  Rxe1+ {[%clk 0:00:10]} 34. Rxe1 {[%clk 0:00:15]}  Rd8 {[%clk 0:00:10]} 35. f5 {[%clk 0:00:14]}  Qd6 {[%clk 0:00:10]} 36. Re8+ {[%clk 0:00:09]}  Kg7 {[%clk 0:00:08]} 37. Qc3+ {[%clk 0:00:08]}  Qd4 {[%clk 0:00:05]} 38. f6+ {[%clk 0:00:08]}  Kxf6 {[%clk 0:00:05]} 39. Qf3+ {[%clk 0:00:05]}  Kg7 {[%clk 0:00:05]} 40. Re1 {[%clk 0:00:05]}  Qf6 {[%clk 0:00:05]} 41. Qg3 {[%clk 0:00:05]}  Rd7 {[%clk 0:00:05]} 42. g5 {[%clk 0:00:05]}  Qd6 {[%clk 0:00:06]} 43. Qc3+ {[%clk 0:00:04]}  Qd4 {[%clk 0:00:06]} 44. Qg3 {[%clk 0:00:05]}  Qd6 {[%clk 0:00:06]} 45. Qc3+ {[%clk 0:00:05]}  Qd4 {[%clk 0:00:06]} 46. Qg3 {[%clk 0:00:05]}  Bc4 {[%clk 0:00:05]} 47. h4 {[%clk 0:00:05]}  Bd5 {[%clk 0:00:04]} 48. Bxd5 {[%clk 0:00:04]}  Qxd5+ {[%clk 0:00:05]} 49. Kh2 {[%clk 0:00:03]}  Qd6 {[%clk 0:00:06]} 50. Re5 {[%clk 0:00:03]}  Re7 {[%clk 0:00:05]} 51. Rxe7 {[%clk 0:00:03]}  Qxe7 {[%clk 0:00:06]} 52. Qc3+ {[%clk 0:00:03]}  f6 {[%clk 0:00:05]} 53. Kg1 {[%clk 0:00:00]}  Qe5 {[%clk 0:00:04]} 0-1

[Event "December 5 Late 2023"]
[Site "https://www.chess.com"]
[Date "2023.12.05"]
[Round "1"]
[White "Tari, Aryan"]
[Black "sina101"]
[Result "1-0"]
[Board "21"]
[TimeControl "180+1"]
[WhiteFideId "1510045"]
[WhiteElo "3000"]
[BlackElo "2486"]
[WhiteTeam "NOR"]
[WhiteClock "0:00:46"]
[BlackClock "0:00:09"]

1. Nc3 {[%clk 0:02:53]}  d5 {[%clk 0:02:58]} 2. Nf3 {[%clk 0:02:51]}  Nf6 {[%clk 0:02:57]} 3. g3 {[%clk 0:02:49]}  Bg4 {[%clk 0:02:57]} 4. Bg2 {[%clk 0:02:49]}  Nbd7 {[%clk 0:02:54]} 5. d4 {[%clk 0:02:46]}  e6 {[%clk 0:02:49]} 6. O-O {[%clk 0:02:46]}  Be7 {[%clk 0:02:48]} 7. h3 {[%clk 0:02:41]}  Bxf3 {[%clk 0:02:47]} 8. Bxf3 {[%clk 0:02:42]}  O-O {[%clk 0:02:47]} 9. e4 {[%clk 0:02:40]}  dxe4 {[%clk 0:02:47]} 10. Nxe4 {[%clk 0:02:41]}  Nxe4 {[%clk 0:02:44]} 11. Bxe4 {[%clk 0:02:42]}  c6 {[%clk 0:02:44]} 12. c3 {[%clk 0:02:41]}  Bf6 {[%clk 0:02:35]} 13. h4 {[%clk 0:02:37]}  Qc7 {[%clk 0:02:33]} 14. Qf3 {[%clk 0:02:30]}  Rad8 {[%clk 0:02:15]} 15. Kg2 {[%clk 0:02:10]}  Rfe8 {[%clk 0:02:10]} 16. Bg5 {[%clk 0:02:05]}  h6 {[%clk 0:01:53]} 17. Be3 {[%clk 0:02:01]}  e5 {[%clk 0:01:46]} 18. d5 {[%clk 0:01:55]}  cxd5 {[%clk 0:01:47]} 19. Bxd5 {[%clk 0:01:55]}  b6 {[%clk 0:01:38]} 20. Rad1 {[%clk 0:01:54]}  Rc8 {[%clk 0:01:09]} 21. Qg4 {[%clk 0:01:47]}  Nf8 {[%clk 0:00:36]} 22. Bxh6 {[%clk 0:01:45]}  Red8 {[%clk 0:00:34]} 23. Be3 {[%clk 0:01:43]}  Rd7 {[%clk 0:00:22]} 24. h5 {[%clk 0:01:36]}  Rcd8 {[%clk 0:00:18]} 25. c4 {[%clk 0:01:37]}  Kh8 {[%clk 0:00:18]} 26. Qf3 {[%clk 0:01:34]}  Rd6 {[%clk 0:00:16]} 27. Bxf7 {[%clk 0:01:29]}  Qxf7 {[%clk 0:00:15]} 28. Rxd6 {[%clk 0:01:28]}  Rxd6 {[%clk 0:00:16]} 29. b3 {[%clk 0:01:26]}  Ne6 {[%clk 0:00:15]} 30. Rh1 {[%clk 0:01:25]}  Qe7 {[%clk 0:00:11]} 31. h6 {[%clk 0:01:21]}  g6 {[%clk 0:00:12]} 32. Qg4 {[%clk 0:01:20]}  Kh7 {[%clk 0:00:11]} 33. Bc1 {[%clk 0:01:16]}  Bg5 {[%clk 0:00:11]} 34. Ba3 {[%clk 0:01:16]}  Qd7 {[%clk 0:00:08]} 35. Bxd6 {[%clk 0:01:16]}  Nf4+ {[%clk 0:00:07]} 36. Qxf4 {[%clk 0:01:07]}  exf4 {[%clk 0:00:06]} 37. Rd1 {[%clk 0:01:06]}  Qc6+ {[%clk 0:00:05]} 38. Rd5 {[%clk 0:01:05]}  fxg3 {[%clk 0:00:06]} 39. Bxg3 {[%clk 0:01:05]}  Bf6 {[%clk 0:00:06]} 40. f3 {[%clk 0:01:05]}  Kxh6 {[%clk 0:00:06]} 41. Rd6 {[%clk 0:01:05]}  Qc5 {[%clk 0:00:05]} 42. Rxf6 {[%clk 0:01:05]}  Qd4 {[%clk 0:00:05]} 43. Rd6 {[%clk 0:01:05]}  Qb2+ {[%clk 0:00:04]} 44. Kh3 {[%clk 0:01:05]}  Qc2 {[%clk 0:00:04]} 45. Rd5 {[%clk 0:00:59]}  Kg7 {[%clk 0:00:04]} 46. Bh4 {[%clk 0:00:57]}  Kf7 {[%clk 0:00:04]} 47. Re5 {[%clk 0:00:56]}  Qc3 {[%clk 0:00:02]} 48. Re7+ {[%clk 0:00:56]}  Kf8 {[%clk 0:00:03]} 49. Kg3 {[%clk 0:00:56]}  Qd3 {[%clk 0:00:03]} 50. Re5 {[%clk 0:00:52]}  Qd6 {[%clk 0:00:03]} 51. Be7+ {[%clk 0:00:52]}  Qxe7 {[%clk 0:00:04]} 52. Rxe7 {[%clk 0:00:52]}  Kxe7 {[%clk 0:00:05]} 53. Kg4 {[%clk 0:00:52]}  Kf6 {[%clk 0:00:06]} 54. f4 {[%clk 0:00:52]}  a6 {[%clk 0:00:06]} 55. b4 {[%clk 0:00:52]}  a5 {[%clk 0:00:04]} 56. bxa5 {[%clk 0:00:52]}  bxa5 {[%clk 0:00:05]} 57. c5 {[%clk 0:00:53]}  Ke6 {[%clk 0:00:05]} 58. Kg5 {[%clk 0:00:53]}  Kd5 {[%clk 0:00:05]} 59. Kxg6 {[%clk 0:00:54]}  Kxc5 {[%clk 0:00:06]} 60. f5 {[%clk 0:00:55]}  Kb4 {[%clk 0:00:07]} 61. f6 {[%clk 0:00:54]}  Ka3 {[%clk 0:00:08]} 62. f7 {[%clk 0:00:55]}  Kxa2 {[%clk 0:00:09]} 63. f8=Q {[%clk 0:00:55]}  a4 {[%clk 0:00:10]} 64. Qb4 {[%clk 0:00:55]}  a3 {[%clk 0:00:10]} 65. Kf5 {[%clk 0:00:54]}  Ka1 {[%clk 0:00:09]} 66. Qxa3+ {[%clk 0:00:46]} 1-0

[Event "December 5 Late 2023"]
[Site "https://www.chess.com"]
[Date "2023.12.05"]
[Round "1"]
[White "Minko, Dmitry"]
[Black "Xiong, Jeffery"]
[Result "0-1"]
[Board "22"]
[TimeControl "180+1"]
[WhiteFideId "24188468"]
[BlackFideId "2047640"]
[WhiteElo "2484"]
[BlackElo "3000"]
[WhiteTeam "FID"]
[BlackTeam "USA"]
[WhiteClock "0:00:33"]
[BlackClock "0:02:01"]

1. e4 {[%clk 0:02:53]}  c5 {[%clk 0:02:59]} 2. Nf3 {[%clk 0:02:53]}  d6 {[%clk 0:02:59]} 3. d4 {[%clk 0:02:53]}  cxd4 {[%clk 0:02:59]} 4. Nxd4 {[%clk 0:02:54]}  Nf6 {[%clk 0:02:59]} 5. Nc3 {[%clk 0:02:55]}  a6 {[%clk 0:02:58]} 6. f3 {[%clk 0:02:55]}  Nbd7 {[%clk 0:02:55]} 7. Be3 {[%clk 0:02:55]}  e6 {[%clk 0:02:45]} 8. Qd2 {[%clk 0:02:55]}  b5 {[%clk 0:02:44]} 9. O-O-O {[%clk 0:02:54]}  Bb7 {[%clk 0:02:43]} 10. Kb1 {[%clk 0:02:54]}  Be7 {[%clk 0:02:39]} 11. h4 {[%clk 0:02:52]}  h5 {[%clk 0:02:21]} 12. Rg1 {[%clk 0:02:00]}  Ne5 {[%clk 0:02:20]} 13. a3 {[%clk 0:01:59]}  Rc8 {[%clk 0:02:18]} 14. g3 {[%clk 0:01:46]}  d5 {[%clk 0:02:14]} 15. exd5 {[%clk 0:01:38]}  Nxd5 {[%clk 0:02:15]} 16. Nxd5 {[%clk 0:01:36]}  Bxd5 {[%clk 0:02:14]} 17. f4 {[%clk 0:01:26]}  Ng4 {[%clk 0:02:10]} 18. Bg2 {[%clk 0:01:21]}  O-O {[%clk 0:02:05]} 19. f5 {[%clk 0:01:07]}  Bxg2 {[%clk 0:02:01]} 20. Rxg2 {[%clk 0:00:33]}  e5 {[%clk 0:02:01]} 0-1

[Event "December 5 Late 2023"]
[Site "https://www.chess.com"]
[Date "2023.12.05"]
[Round "1"]
[White "Paravyan, David"]
[Black "Villa Tornero, Alex"]
[Result "1-0"]
[Board "23"]
[TimeControl "180+1"]
[WhiteFideId "4194985"]
[BlackFideId "54501091"]
[WhiteElo "2999"]
[BlackElo "2484"]
[WhiteTeam "FID"]
[BlackTeam "ESP"]
[WhiteClock "0:02:09"]
[BlackClock "0:01:01"]

1. e4 {[%clk 0:03:00]}  c5 {[%clk 0:02:58]} 2. Nf3 {[%clk 0:02:58]}  e6 {[%clk 0:02:58]} 3. d4 {[%clk 0:02:57]}  cxd4 {[%clk 0:02:59]} 4. Nxd4 {[%clk 0:02:58]}  a6 {[%clk 0:02:59]} 5. c3 {[%clk 0:02:53]}  d6 {[%clk 0:02:51]} 6. g3 {[%clk 0:02:52]}  Nf6 {[%clk 0:02:51]} 7. Bg2 {[%clk 0:02:52]}  Be7 {[%clk 0:02:51]} 8. O-O {[%clk 0:02:52]}  O-O {[%clk 0:02:51]} 9. c4 {[%clk 0:02:50]}  Qc7 {[%clk 0:02:50]} 10. b3 {[%clk 0:02:50]}  Nbd7 {[%clk 0:02:46]} 11. Bb2 {[%clk 0:02:47]}  b6 {[%clk 0:02:40]} 12. e5 {[%clk 0:02:46]}  dxe5 {[%clk 0:02:39]} 13. Bxa8 {[%clk 0:02:46]}  exd4 {[%clk 0:02:39]} 14. Bxd4 {[%clk 0:02:44]}  Bb7 {[%clk 0:02:38]} 15. Bxb7 {[%clk 0:02:44]}  Qxb7 {[%clk 0:02:39]} 16. Nd2 {[%clk 0:02:43]}  Rd8 {[%clk 0:02:38]} 17. Qf3 {[%clk 0:02:42]}  Qc7 {[%clk 0:02:20]} 18. Rad1 {[%clk 0:02:41]}  e5 {[%clk 0:02:15]} 19. Be3 {[%clk 0:02:37]}  Kh8 {[%clk 0:02:09]} 20. Ne4 {[%clk 0:02:36]}  Qc6 {[%clk 0:02:07]} 21. Nxf6 {[%clk 0:02:35]}  Qxf3 {[%clk 0:02:05]} 22. Nxd7 {[%clk 0:02:21]}  Qg4 {[%clk 0:01:52]} 23. Nxe5 {[%clk 0:02:17]}  Qxd1 {[%clk 0:01:52]} 24. Rxd1 {[%clk 0:02:17]}  Rxd1+ {[%clk 0:01:53]} 25. Kg2 {[%clk 0:02:17]}  Kg8 {[%clk 0:01:53]} 26. Bxb6 {[%clk 0:02:16]}  Ra1 {[%clk 0:01:47]} 27. c5 {[%clk 0:02:11]}  Bf6 {[%clk 0:01:28]} 28. Nc4 {[%clk 0:02:09]}  Rxa2 {[%clk 0:01:01]} 29. c6 {[%clk 0:02:09]} 1-0

[Event "December 5 Late 2023"]
[Site "https://www.chess.com"]
[Date "2023.12.05"]
[Round "1"]
[White "Terry, Renato"]
[Black "Tabuenca Mendataurigoitia, Daniel"]
[Result "1-0"]
[Board "25"]
[TimeControl "180+1"]
[WhiteFideId "3803457"]
[BlackFideId "24563617"]
[WhiteElo "2982"]
[BlackElo "2482"]
[WhiteTeam "PER"]
[BlackTeam "ESP"]
[WhiteClock "0:00:37"]
[BlackClock "0:00:04"]

1. d4 {[%clk 0:02:55]}  d6 {[%clk 0:02:59]} 2. Nf3 {[%clk 0:02:55]}  Nf6 {[%clk 0:02:57]} 3. Bg5 {[%clk 0:02:53]}  g6 {[%clk 0:02:53]} 4. Nbd2 {[%clk 0:02:52]}  Bg7 {[%clk 0:02:50]} 5. c3 {[%clk 0:02:52]}  O-O {[%clk 0:02:49]} 6. e4 {[%clk 0:02:52]}  c5 {[%clk 0:02:46]} 7. dxc5 {[%clk 0:02:52]}  dxc5 {[%clk 0:02:45]} 8. Bc4 {[%clk 0:02:52]}  Nc6 {[%clk 0:02:41]} 9. Qe2 {[%clk 0:02:52]}  h6 {[%clk 0:02:30]} 10. Bh4 {[%clk 0:02:43]}  Nd7 {[%clk 0:02:22]} 11. O-O {[%clk 0:02:40]}  Qc7 {[%clk 0:02:15]} 12. Bg3 {[%clk 0:02:36]}  Qb6 {[%clk 0:02:08]} 13. Bb3 {[%clk 0:02:32]}  a6 {[%clk 0:02:05]} 14. Nc4 {[%clk 0:02:28]}  Qa7 {[%clk 0:02:01]} 15. a4 {[%clk 0:02:27]}  Nb6 {[%clk 0:01:58]} 16. a5 {[%clk 0:02:19]}  Nxc4 {[%clk 0:01:57]} 17. Bxc4 {[%clk 0:02:20]}  b5 {[%clk 0:01:55]} 18. axb6 {[%clk 0:02:20]}  Qxb6 {[%clk 0:01:55]} 19. h3 {[%clk 0:02:08]}  a5 {[%clk 0:01:51]} 20. Rfd1 {[%clk 0:02:02]}  Ba6 {[%clk 0:01:18]} 21. Nd2 {[%clk 0:01:59]}  Bxc4 {[%clk 0:01:16]} 22. Nxc4 {[%clk 0:02:00]}  Qb7 {[%clk 0:01:15]} 23. Rd2 {[%clk 0:01:50]}  Rfd8 {[%clk 0:01:02]} 24. Rxd8+ {[%clk 0:01:50]}  Rxd8 {[%clk 0:01:02]} 25. Nxa5 {[%clk 0:01:46]}  Nxa5 {[%clk 0:00:38]} 26. Rxa5 {[%clk 0:01:46]}  c4 {[%clk 0:00:37]} 27. Ra4 {[%clk 0:01:21]}  Rc8 {[%clk 0:00:34]} 28. e5 {[%clk 0:01:14]}  Qd5 {[%clk 0:00:32]} 29. Kh2 {[%clk 0:00:58]}  e6 {[%clk 0:00:31]} 30. Rb4 {[%clk 0:00:57]}  Bf8 {[%clk 0:00:29]} 31. Ra4 {[%clk 0:00:57]}  Qb5 {[%clk 0:00:28]} 32. Qc2 {[%clk 0:00:46]}  Rb8 {[%clk 0:00:21]} 33. Ra2 {[%clk 0:00:46]}  Rd8 {[%clk 0:00:19]} 34. Bf4 {[%clk 0:00:43]}  Rd3 {[%clk 0:00:14]} 35. Qa4 {[%clk 0:00:42]}  Qd5 {[%clk 0:00:11]} 36. Qe8 {[%clk 0:00:42]}  g5 {[%clk 0:00:10]} 37. Ra8 {[%clk 0:00:40]}  Qc5 {[%clk 0:00:08]} 38. Rc8 {[%clk 0:00:37]}  Qxf2 {[%clk 0:00:04]} 39. Qxf8+ {[%clk 0:00:36]}  Kh7 {[%clk 0:00:04]} 40. Qxf7# {[%clk 0:00:37]} 1-0

[Event "December 5 Late 2023"]
[Site "https://www.chess.com"]
[Date "2023.12.05"]
[Round "1"]
[White "Khismatullin, Denis"]
[Black "Dobre, Claudiu-Cristian"]
[Result "0-1"]
[Board "31"]
[TimeControl "180+1"]
[WhiteFideId "4142578"]
[BlackFideId "1211854"]
[WhiteElo "2943"]
[BlackElo "2474"]
[WhiteTeam "RUS"]
[BlackTeam "ROU"]
[WhiteClock "0:00:00"]
[BlackClock "0:00:05"]

1. c4 {[%clk 0:03:00]}  Nf6 {[%clk 0:02:59]} 2. Nc3 {[%clk 0:02:59]}  c6 {[%clk 0:02:59]} 3. e4 {[%clk 0:02:58]}  d5 {[%clk 0:02:59]} 4. cxd5 {[%clk 0:02:52]}  cxd5 {[%clk 0:02:58]} 5. e5 {[%clk 0:02:53]}  d4 {[%clk 0:02:57]} 6. exf6 {[%clk 0:02:50]}  dxc3 {[%clk 0:02:57]} 7. bxc3 {[%clk 0:02:50]}  exf6 {[%clk 0:02:56]} 8. d4 {[%clk 0:02:47]}  Nc6 {[%clk 0:02:55]} 9. Bb5 {[%clk 0:02:43]}  Bd7 {[%clk 0:02:47]} 10. Nf3 {[%clk 0:02:40]}  Bd6 {[%clk 0:02:39]} 11. Qe2+ {[%clk 0:02:39]}  Qe7 {[%clk 0:02:36]} 12. Qxe7+ {[%clk 0:02:36]}  Nxe7 {[%clk 0:02:22]} 13. a4 {[%clk 0:02:36]}  Rc8 {[%clk 0:02:03]} 14. Bd2 {[%clk 0:02:34]}  Nd5 {[%clk 0:01:58]} 15. O-O {[%clk 0:02:13]}  a6 {[%clk 0:01:51]} 16. Rfe1+ {[%clk 0:02:09]}  Kd8 {[%clk 0:01:51]} 17. Bxd7 {[%clk 0:01:56]}  Kxd7 {[%clk 0:01:50]} 18. Reb1 {[%clk 0:01:54]}  Rc7 {[%clk 0:01:42]} 19. c4 {[%clk 0:01:53]}  Rxc4 {[%clk 0:01:40]} 20. Rxb7+ {[%clk 0:01:53]}  Rc7 {[%clk 0:01:37]} 21. Rab1 {[%clk 0:01:52]}  Rc8 {[%clk 0:01:32]} 22. Kf1 {[%clk 0:01:51]}  Rxb7 {[%clk 0:01:29]} 23. Rxb7+ {[%clk 0:01:51]}  Rc7 {[%clk 0:01:29]} 24. Rb3 {[%clk 0:01:45]}  Rc2 {[%clk 0:01:01]} 25. g3 {[%clk 0:01:44]}  Kc6 {[%clk 0:00:50]} 26. h4 {[%clk 0:01:35]}  h5 {[%clk 0:00:49]} 27. a5 {[%clk 0:01:31]}  Bc7 {[%clk 0:00:39]} 28. Ra3 {[%clk 0:01:28]}  Kb5 {[%clk 0:00:26]} 29. Ke2 {[%clk 0:01:26]}  Kc4 {[%clk 0:00:15]} 30. Kd1 {[%clk 0:01:10]}  Rb2 {[%clk 0:00:14]} 31. Kc1 {[%clk 0:01:09]}  Rb3 {[%clk 0:00:11]} 32. Rxb3 {[%clk 0:01:01]}  Kxb3 {[%clk 0:00:11]} 33. Ne1 {[%clk 0:01:01]}  Ka4 {[%clk 0:00:11]} 34. Nd3 {[%clk 0:00:59]}  Bxa5 {[%clk 0:00:10]} 35. Nc5+ {[%clk 0:00:58]}  Kb5 {[%clk 0:00:10]} 36. Bxa5 {[%clk 0:00:53]}  Kxa5 {[%clk 0:00:10]} 37. Kc2 {[%clk 0:00:52]}  Kb5 {[%clk 0:00:10]} 38. Kb3 {[%clk 0:00:50]}  a5 {[%clk 0:00:10]} 39. Nb7 {[%clk 0:00:47]}  a4+ {[%clk 0:00:06]} 40. Ka3 {[%clk 0:00:47]}  Kc4 {[%clk 0:00:07]} 41. Nd6+ {[%clk 0:00:47]}  Kxd4 {[%clk 0:00:07]} 42. Kxa4 {[%clk 0:00:46]}  Kd3 {[%clk 0:00:06]} 43. Kb5 {[%clk 0:00:41]}  Ke2 {[%clk 0:00:06]} 44. f4 {[%clk 0:00:39]}  Kf3 {[%clk 0:00:06]} 45. f5 {[%clk 0:00:38]}  Kxg3 {[%clk 0:00:05]} 46. Kc6 {[%clk 0:00:39]}  Ne3 {[%clk 0:00:05]} 47. Kd7 {[%clk 0:00:38]}  Kg4 {[%clk 0:00:05]} 48. Ke8 {[%clk 0:00:37]}  Nxf5 {[%clk 0:00:05]} 49. Ne4 {[%clk 0:00:32]}  Kxh4 {[%clk 0:00:05]} 50. Kxf7 {[%clk 0:00:32]}  Kg4 {[%clk 0:00:04]} 51. Kg6 {[%clk 0:00:32]}  h4 {[%clk 0:00:05]} 52. Nf2+ {[%clk 0:00:32]}  Kf3 {[%clk 0:00:05]} 53. Nh3 {[%clk 0:00:29]}  Kg3 {[%clk 0:00:04]} 54. Ng1 {[%clk 0:00:29]}  Nd4 {[%clk 0:00:04]} 55. Kxg7 {[%clk 0:00:29]}  f5 {[%clk 0:00:04]} 56. Kf6 {[%clk 0:00:29]}  f4 {[%clk 0:00:04]} 57. Ke5 {[%clk 0:00:00]}  Nf3+ {[%clk 0:00:05]} 0-1

[Event "December 5 Late 2023"]
[Site "https://www.chess.com"]
[Date "2023.12.05"]
[Round "1"]
[White "Koutlas, Nikolaos"]
[Black "Maksimovic, Bojan"]
[Result "0-1"]
[Board "36"]
[TimeControl "180+1"]
[WhiteFideId "25827138"]
[BlackFideId "14408120"]
[WhiteElo "2464"]
[BlackElo "2926"]
[WhiteTeam "GRE"]
[BlackTeam "BIH"]
[WhiteClock "0:02:12"]
[BlackClock "0:01:57"]

1. Nf3 {[%clk 0:02:54]}  g6 {[%clk 0:02:56]} 2. h4 {[%clk 0:02:53]}  Nf6 {[%clk 0:02:54]} 3. b3 {[%clk 0:02:51]}  Bg7 {[%clk 0:02:51]} 4. Bb2 {[%clk 0:02:52]}  d5 {[%clk 0:02:49]} 5. c4 {[%clk 0:02:51]}  c6 {[%clk 0:02:42]} 6. e3 {[%clk 0:02:50]}  Bg4 {[%clk 0:02:39]} 7. Be2 {[%clk 0:02:49]}  Nbd7 {[%clk 0:02:38]} 8. Nc3 {[%clk 0:02:44]}  O-O {[%clk 0:02:36]} 9. Rc1 {[%clk 0:02:37]}  e5 {[%clk 0:02:35]} 10. d3 {[%clk 0:02:36]}  e4 {[%clk 0:02:17]} 11. Nd4 {[%clk 0:02:32]}  Bxe2 {[%clk 0:02:14]} 12. Qxe2 {[%clk 0:02:24]}  exd3 {[%clk 0:02:06]} 13. Qxd3 {[%clk 0:02:23]}  Ne5 {[%clk 0:02:07]} 14. Qe2 {[%clk 0:02:19]}  dxc4 {[%clk 0:02:07]} 15. Qxc4 {[%clk 0:02:12]}  Nxc4 {[%clk 0:01:57]} 0-1

[Event "December 5 Late 2023"]
[Site "https://www.chess.com"]
[Date "2023.12.05"]
[Round "1"]
[White "Shton, Roman"]
[Black "Sjugirov, Sanan"]
[Result "0-1"]
[Board "38"]
[TimeControl "180+1"]
[WhiteFideId "14137461"]
[BlackFideId "4189302"]
[WhiteElo "2460"]
[BlackElo "2914"]
[WhiteTeam "UKR"]
[BlackTeam "HUN"]
[WhiteClock "0:00:00"]
[BlackClock "0:02:00"]

1. d4 {[%clk 0:03:00]}  Nf6 {[%clk 0:03:00]} 2. Nf3 {[%clk 0:03:00]}  d5 {[%clk 0:02:59]} 3. g3 {[%clk 0:03:00]}  g6 {[%clk 0:02:58]} 4. Bg2 {[%clk 0:03:00]}  Bg7 {[%clk 0:02:59]} 5. O-O {[%clk 0:03:00]}  O-O {[%clk 0:03:00]} 6. c4 {[%clk 0:02:59]}  c6 {[%clk 0:03:00]} 7. cxd5 {[%clk 0:02:58]}  cxd5 {[%clk 0:03:01]} 8. Nc3 {[%clk 0:02:59]}  b6 {[%clk 0:02:57]} 9. Qb3 {[%clk 0:02:57]}  Bb7 {[%clk 0:02:58]} 10. Qa3 {[%clk 0:02:57]}  Nc6 {[%clk 0:02:53]} 11. Bf4 {[%clk 0:02:56]}  a6 {[%clk 0:02:47]} 12. b4 {[%clk 0:02:44]}  Ne4 {[%clk 0:02:42]} 13. Rfd1 {[%clk 0:02:36]}  a5 {[%clk 0:02:33]} 14. b5 {[%clk 0:02:32]}  Nb4 {[%clk 0:02:25]} 15. Rac1 {[%clk 0:02:26]}  Rc8 {[%clk 0:02:24]} 16. Ne5 {[%clk 0:02:20]}  Nxc3 {[%clk 0:02:20]} 17. Rxc3 {[%clk 0:02:21]}  Rxc3 {[%clk 0:02:21]} 18. Qxc3 {[%clk 0:02:21]}  Nxa2 {[%clk 0:02:21]} 19. Qb3 {[%clk 0:02:02]}  Nb4 {[%clk 0:02:21]} 20. Rc1 {[%clk 0:01:56]}  e6 {[%clk 0:02:13]} 21. h4 {[%clk 0:01:38]}  Qe7 {[%clk 0:02:10]} 22. Nd3 {[%clk 0:01:23]}  Rc8 {[%clk 0:02:07]} 23. Rxc8+ {[%clk 0:01:06]}  Bxc8 {[%clk 0:02:08]} 24. Nxb4 {[%clk 0:00:53]}  Qxb4 {[%clk 0:02:09]} 25. Qxb4 {[%clk 0:00:46]}  axb4 {[%clk 0:02:10]} 26. Bd2 {[%clk 0:00:46]}  Bxd4 {[%clk 0:02:04]} 27. Bxb4 {[%clk 0:00:46]}  Bd7 {[%clk 0:02:04]} 28. e3 {[%clk 0:00:45]}  Bc5 {[%clk 0:02:04]} 29. Bxc5 {[%clk 0:00:44]}  bxc5 {[%clk 0:02:05]} 30. b6 {[%clk 0:00:45]}  Bc6 {[%clk 0:02:04]} 31. Bf1 {[%clk 0:00:43]}  c4 {[%clk 0:02:01]} 32. Be2 {[%clk 0:00:35]}  Kf8 {[%clk 0:02:01]} 33. Kf1 {[%clk 0:00:35]}  Ke7 {[%clk 0:02:01]} 34. Ke1 {[%clk 0:00:36]}  Kd6 {[%clk 0:02:01]} 35. Kd2 {[%clk 0:00:36]}  Kc5 {[%clk 0:02:02]} 36. Kc3 {[%clk 0:00:37]}  e5 {[%clk 0:02:01]} 37. h5 {[%clk 0:00:10]}  d4+ {[%clk 0:02:01]} 38. exd4+ {[%clk 0:00:10]}  exd4+ {[%clk 0:02:01]} 39. Kd2 {[%clk 0:00:09]}  Bd5 {[%clk 0:01:59]} 40. hxg6 {[%clk 0:00:10]}  hxg6 {[%clk 0:01:59]} 41. f4 {[%clk 0:00:01]}  Kxb6 {[%clk 0:01:58]} 42. g4 {[%clk 0:00:01]}  Kc5 {[%clk 0:01:58]} 43. f5 {[%clk 0:00:02]}  g5 {[%clk 0:01:58]} 44. Bf1 {[%clk 0:00:01]}  Be4 {[%clk 0:01:58]} 45. Bh3 {[%clk 0:00:01]}  c3+ {[%clk 0:01:58]} 46. Kc1 {[%clk 0:00:01]}  d3 {[%clk 0:01:59]} 47. f6 {[%clk 0:00:02]}  d2+ {[%clk 0:01:59]} 48. Kd1 {[%clk 0:00:00]}  Bf3+ {[%clk 0:02:00]} 0-1

[Event "December 5 Late 2023"]
[Site "https://www.chess.com"]
[Date "2023.12.05"]
[Round "1"]
[White "Rasulov, Vugar"]
[Black "Djabri, Massinas"]
[Result "1-0"]
[Board "39"]
[TimeControl "180+1"]
[WhiteFideId "13402390"]
[BlackFideId "7905726"]
[WhiteElo "2913"]
[BlackElo "2451"]
[WhiteTeam "AZE"]
[BlackTeam "ALG"]
[WhiteClock "0:01:49"]
[BlackClock "0:01:08"]

1. e4 {[%clk 0:03:00]}  c5 {[%clk 0:03:00]} 2. Nf3 {[%clk 0:03:00]}  d6 {[%clk 0:03:01]} 3. b3 {[%clk 0:02:59]}  Nf6 {[%clk 0:03:01]} 4. Bb5+ {[%clk 0:02:58]}  Bd7 {[%clk 0:02:58]} 5. Bxd7+ {[%clk 0:02:58]}  Qxd7 {[%clk 0:02:59]} 6. d3 {[%clk 0:02:57]}  Nc6 {[%clk 0:02:58]} 7. O-O {[%clk 0:02:57]}  h6 {[%clk 0:02:57]} 8. Bb2 {[%clk 0:02:56]}  e5 {[%clk 0:02:57]} 9. c3 {[%clk 0:02:54]}  d5 {[%clk 0:02:52]} 10. d4 {[%clk 0:02:43]}  dxe4 {[%clk 0:02:46]} 11. Nxe5 {[%clk 0:02:43]}  Nxe5 {[%clk 0:02:45]} 12. dxe5 {[%clk 0:02:44]}  Qxd1 {[%clk 0:02:43]} 13. Rxd1 {[%clk 0:02:45]}  Ng4 {[%clk 0:02:01]} 14. c4 {[%clk 0:02:31]}  e3 {[%clk 0:02:01]} 15. f3 {[%clk 0:02:12]}  Nf2 {[%clk 0:02:00]} 16. Rd5 {[%clk 0:02:12]}  g5 {[%clk 0:01:39]} 17. Nc3 {[%clk 0:02:08]}  g4 {[%clk 0:01:38]} 18. Re1 {[%clk 0:01:52]}  gxf3 {[%clk 0:01:16]} 19. Rxe3 {[%clk 0:01:53]}  Rg8 {[%clk 0:01:11]} 20. Rxf3 {[%clk 0:01:50]}  Ng4 {[%clk 0:01:08]} 21. h3 {[%clk 0:01:49]} 1-0